bitfinex/quotes_ETHUSD_20250815
["timestamp","ask_amount","ask_price","bid_price","bid_amount"]
[1755234479996,0.94776988,4634.8,4634.6,0.001]
[1755234480188,2.65166102,4634.8,4634.6,0.001]
[1755234480495,1.1967661,4634.7,4634.6,0.001]
[1755234481096,16.91785725,4634.7,4634.6,0.001]
[1755234481285,24.38507184,4634.7,4634.6,0.001]
[1755234481497,24.57739032,4634.7,4634.6,0.001]
[1755234481893,24.7792097,4634.7,4634.6,0.001]
[1755234482197,23.80358255,4634.7,4634.6,0.001]
[1755234482603,23.80358255,4634.7,4633.2,0.001]
[1755234482604,2.1582889,4633.3,4633.2,0.001]
[1755234482767,26.0046829,4633.3,4633.2,0.001]
[1755234482966,26.8092684,4633.3,4633.2,0.001]
[1755234483170,9.5111142,4633.3,4633.2,0.001]
[1755234483374,12.7961142,4633.3,4633.2,0.001]
[1755234483567,13.5257803,4633.3,4633.2,0.001]
[1755234483779,13.0720803,4633.3,4633.2,0.001]
[1755234483984,4.0255544,4633.3,4633.2,0.001]
[1755234484306,12.3315259,4633.3,4633.2,0.001]
[1755234484871,25.8949801,4633.3,4633.2,0.001]
[1755234485079,26.5077971,4633.3,4633.2,0.001]
[1755234485284,26.97095982,4633.3,4633.2,0.001]
[1755234487378,26.0540971,4633.3,4633.2,0.001]
[1755234488418,12.4906429,4633.3,4633.2,0.001]
[1755234490001,12.9443429,4633.3,4633.2,0.001]
[1755234490306,12.4906429,4633.3,4633.2,0.001]
[1755234490508,2.3174059,4633.3,4633.2,0.001]
[1755234490710,5.6034059,4633.3,4633.2,0.001]
[1755234490893,6.21045649,4633.3,4633.2,0.001]
[1755234492224,6.67755649,4633.3,4633.2,0.001]
[1755234492598,6.31845649,4633.3,4633.2,0.001]
[1755234492800,5.7114059,4633.3,4633.2,0.001]
[1755234493524,3.553117,4633.3,4633.2,0.001]
[1755234493856,3.553117,4633.3,4633.2,0.4571]
[1755234494256,5.7114059,4633.3,4633.2,0.4571]
[1755234494458,3.553117,4633.3,4633.2,0.4571]
[1755234494833,5.7114059,4633.3,4633.2,0.4571]
[1755234495161,6.28254649,4633.3,4633.2,0.001]
[1755234495526,6.12342949,4633.3,4633.2,0.001]
[1755234496532,6.28865643,4633.3,4633.2,0.001]
[1755234498068,4.13036753,4633.3,4633.2,0.001]
[1755234498229,6.28865643,4633.3,4633.2,0.001]
[1755234498434,4.13036753,4633.3,4633.2,0.001]
[1755234498871,4.12836753,4633.3,4633.2,0.001]
[1755234499564,0.108,4633.3,4633.2,0.001]
[1755234499740,3.392,4633.3,4633.2,0.001]
[1755234499946,3.392,4633.3,4633.2,0.4571]
[1755234502039,0.108,4633.3,4633.2,0.4571]
[1755234502369,5.5492889,4633.3,4633.2,0.001]
[1755234506483,6.33586439,4633.3,4633.2,0.001]
[1755234506651,20.83444614,4633.3,4633.2,0.001]
[1755234507471,21.28944614,4633.3,4633.2,0.001]
[1755234508290,27.71058314,4633.3,4633.2,0.001]
[1755234508588,27.79709214,4633.3,4633.2,0.001]
[1755234509161,29.48395933,4633.3,4633.2,0.001]
[1755234509687,28.20113952,4633.3,4633.2,0.001]
[1755234510462,29.36274512,4633.3,4633.2,0.001]
[1755234510690,29.48395618,4633.3,4633.2,0.001]
[1755234511264,23.06281918,4633.3,4633.2,0.001]
[1755234511489,29.48395618,4633.3,4633.2,0.001]
[1755234512393,28.32235058,4633.3,4633.2,0.001]
[1755234514103,29.48654606,4633.3,4633.2,0.001]
[1755234514271,29.03154606,4633.3,4633.2,0.001]
[1755234515393,29.03159374,4633.3,4633.2,0.001]
[1755234517592,28.910335,4633.3,4633.2,0.001]
[1755234518198,29.03158933,4633.3,4633.2,0.001]
[1755234519211,29.48643268,4633.3,4633.2,0.001]
[1755234519802,28.91017835,4633.3,4633.2,0.001]
[1755234520686,27.74612916,4633.3,4633.2,0.001]
[1755234521014,28.91016799,4633.3,4633.2,0.001]
[1755234521312,27.74612916,4633.3,4633.2,0.001]
[1755234521501,21.32499216,4633.3,4633.2,0.001]
[1755234521701,25.58784026,4633.3,4633.2,0.001]
[1755234522416,26.04284026,4633.3,4633.2,0.001]
[1755234522793,27.72078804,4633.3,4632.6,0.001]
[1755234523006,13.6714542,4632.7,4632.5,0.001]
[1755234523314,10.97002438,4632.6,4632.5,0.001]
[1755234523516,11.4146417,4632.6,4632.5,0.001]
[1755234523704,11.5011617,4632.6,4632.5,0.001]
[1755234523912,12.28773719,4632.6,4632.5,0.001]
[1755234525109,11.81613719,4632.6,4632.5,0.001]
[1755234525315,11.04076004,4632.6,4632.5,0.001]
[1755234525714,12.28773719,4632.6,4632.5,0.001]
[1755234526223,11.51236004,4632.6,4632.5,0.001]
[1755234526795,11.04076004,4632.6,4632.5,0.001]
[1755234528106,11.51236004,4632.6,4632.5,0.001]
[1755234529921,7.75776004,4632.6,4632.5,0.001]
[1755234530119,11.04176004,4632.6,4632.5,0.4859]
[1755234530312,10.95524004,4632.6,4632.5,0.4859]
[1755234531219,10.95524004,4632.6,4632.5,0.001]
[1755234531420,10.95524004,4632.6,4632.5,0.4859]
[1755234533006,7.67124004,4632.6,4632.5,0.4859]
[1755234533201,6.88466455,4632.6,4632.5,0.4859]
[1755234533416,10.16866455,4632.6,4632.5,0.929]
[1755234534322,3.74752755,4632.6,4632.5,0.4859]
[1755234534623,3.284,4632.6,4632.5,0.929]
[1755234536407,3.284,4632.6,4632.5,0.4859]
[1755234536909,0.108,4632.7,4632.5,0.929]
[1755234537103,0.108,4632.7,4632.6,0.9279]
[1755234537308,3.391,4632.7,4632.6,0.9279]
[1755234537714,1.54360969,4633.0,4632.6,0.9279]
[1755234537926,3.283,4632.9,4632.5,0.109]
[1755234538234,3.283,4632.9,4632.7,0.9279]
[1755234538418,3.283,4632.9,4632.5,0.109]
[1755234538620,3.283,4632.9,4632.8,0.9279]
[1755234538925,3.283,4632.9,4632.8,0.4848]
[1755234539804,3.30998094,4632.9,4632.8,0.4848]
[1755234540006,3.283,4632.9,4632.8,0.4848]
[1755234540426,6.421137,4632.8,4632.5,0.001]
[1755234540625,13.5634542,4632.6,4632.5,0.001]
[1755234540798,20.55793116,4632.6,4632.5,0.001]
[1755234541003,21.02423116,4632.6,4632.5,0.001]
[1755234541204,21.69746573,4632.6,4632.5,0.001]
[1755234542458,21.23116573,4632.6,4632.5,0.001]
[1755234542654,7.66771153,4632.6,4632.5,0.001]
[1755234542815,3.85633996,4632.6,4632.5,0.4858]
[1755234543139,3.391,4632.6,4632.5,0.001]
[1755234543441,3.391,4632.6,4632.5,0.4858]
[1755234543641,1.5349303,4632.9,4632.5,0.9289]
[1755234543811,3.283,4632.8,4632.6,0.9279]
[1755234544007,3.283,4632.8,4632.7,0.9279]
[1755234545111,1.5349303,4632.9,4632.7,0.9279]
[1755234545307,1.5349303,4632.9,4632.8,0.9279]
[1755234545616,1.5349303,4632.9,4632.8,1.0359]
[1755234545811,1.5349303,4632.9,4632.8,1.5859]
[1755234546012,1.5349303,4632.9,4632.8,1.74459]
[1755234548854,3.285,4633.2,4632.9,0.55]
[1755234549156,3.285,4633.2,4632.8,0.26669]
[1755234549469,3.285,4633.2,4633.1,0.108]
[1755234549755,3.285,4633.2,4633.1,1.0359]
[1755234550123,0.002,4633.2,4633.1,0.5928]
[1755234552753,0.002,4633.2,4633.1,0.108]
[1755234552954,0.002,4633.2,4632.6,0.108]
[1755234553159,3.282,4633.1,4632.6,0.108]
[1755234553361,3.282,4633.1,4632.7,0.4848]
[1755234554362,3.282,4633.1,4632.6,0.108]
[1755234554549,3.282,4633.1,4632.8,0.4848]
[1755234555462,3.282,4633.1,4632.6,0.108]
[1755234555831,0.4663,4633.0,4632.6,0.108]
[1755234557361,3.282,4633.1,4632.6,0.5928]
[1755234557561,3.282,4633.0,4632.7,0.4848]
[1755234557763,3.282,4633.0,4632.8,0.4848]
[1755234557953,3.282,4633.0,4632.7,0.4431]
[1755234558155,3.282,4633.0,4632.9,0.4848]
[1755234563372,3.284,4633.2,4632.9,0.9588]
[1755234563578,3.284,4633.2,4633.0,0.4617]
[1755234563773,3.284,4633.2,4633.1,0.4617]
[1755234564268,0.002,4633.2,4633.1,0.4617]
[1755234564478,0.002,4633.2,4633.0,0.108]
[1755234565338,0.002,4633.2,4632.5,0.001]
[1755234565339,0.4292,4633.1,4632.8,0.108]
[1755234566175,3.7112,4633.0,4632.5,0.001]
[1755234566342,3.282,4633.0,4632.6,0.108]
[1755234566543,0.4292,4632.9,4632.6,0.108]
[1755234566745,3.282,4633.0,4632.6,0.108]
[1755234566944,0.4292,4632.8,4632.6,0.108]
[1755234567454,0.4292,4632.7,4632.6,0.108]
[1755234568884,3.282,4633.0,4632.6,0.108]
[1755234569051,0.4292,4632.7,4632.6,0.108]
[1755234569468,3.282,4633.0,4632.6,0.108]
[1755234569660,3.7112,4633.0,4632.6,0.108]
[1755234569869,0.4292,4632.9,4632.6,0.108]
[1755234570180,0.4292,4632.8,4632.6,0.108]
[1755234570790,0.4292,4632.7,4632.6,2.26761503]
[1755234571497,3.284,4633.0,4632.6,0.109]
[1755234571693,3.284,4633.0,4632.6,0.001]
[1755234571694,0.4292,4632.7,4632.6,0.001]
[1755234572479,0.8897,4632.7,4632.6,0.001]
[1755234573059,0.4292,4632.7,4632.6,0.001]
[1755234573278,0.108,4632.8,4632.7,2.15856843]
[1755234573466,3.282,4632.8,4632.7,2.15856843]
[1755234574259,3.7112,4632.8,4632.6,0.001]
[1755234574464,0.4292,4632.7,4632.6,0.001]
[1755234574675,0.8897,4632.7,4632.6,0.001]
[1755234575668,0.4292,4632.7,4632.6,0.001]
[1755234576668,0.4561821,4632.7,4632.6,0.001]
[1755234576868,0.5372,4632.7,4632.6,0.001]
[1755234577073,1.01190208,4632.7,4632.6,0.001]
[1755234578169,0.108,4632.7,4632.6,0.001]
[1755234578371,0.108,4632.7,4632.6,0.4627]
[1755234578581,0.108,4632.7,4632.6,0.001]
[1755234581693,0.5372,4632.7,4632.6,0.001]
[1755234585705,0.108,4632.7,4632.6,0.001]
[1755234587123,0.5372,4632.7,4632.6,0.001]
[1755234588197,0.5392,4632.7,4632.6,0.001]
[1755234590823,0.11,4632.7,4632.6,0.001]
[1755234592217,0.5455,4632.7,4632.6,0.001]
[1755234593654,0.11,4632.7,4632.6,0.001]
[1755234595438,0.5455,4632.7,4632.6,0.001]
[1755234596055,3.37638437,4632.7,4632.6,0.001]
[1755234596225,4.30900517,4632.7,4632.6,0.001]
[1755234596420,4.28202307,4632.7,4632.6,0.001]
[1755234600377,2.12345464,4632.7,4632.6,0.001]
[1755234600578,1.22065464,4632.7,4632.6,0.001]
[1755234600751,3.392,4632.7,4632.6,0.001]
[1755234601642,0.11,4632.7,4632.6,0.001]
[1755234601843,3.391,4632.7,4632.6,0.4977]
[1755234602151,3.391,4632.7,4632.6,0.001]
[1755234605076,3.283,4632.7,4632.6,2.65631503]
[1755234605665,3.283,4632.7,4632.6,2.15961503]
[1755234605887,3.7185,4632.7,4632.6,0.001]
[1755234606072,3.391,4632.7,4632.6,0.001]
[1755234607698,3.8265,4632.7,4632.6,0.001]
[1755234607998,4.47442349,4632.7,4632.6,0.001]
[1755234608349,4.03892349,4632.7,4632.6,0.001]
[1755234608584,3.391,4632.7,4632.6,0.001]
[1755234609752,3.391,4632.7,4632.6,0.4977]
[1755234610666,3.391,4632.7,4632.6,0.001]
[1755234611988,3.391,4632.7,4632.6,0.4977]
[1755234612208,3.391,4632.7,4632.6,0.001]
[1755234613089,3.391,4632.7,4632.6,2.15961503]
[1755234613295,3.391,4632.7,4632.6,2.65631503]
[1755234613491,3.391,4632.7,4632.6,0.001]
[1755234613693,3.391,4632.7,4632.6,2.65631503]
[1755234614276,3.283,4632.7,4632.6,2.65631503]
[1755234615798,3.283,4632.7,4632.6,0.4977]
[1755234615970,3.283,4632.7,4632.6,0.001]
[1755234618696,0.002,4632.7,4632.6,0.001]
[1755234618902,3.283,4632.7,4632.6,0.001]
[1755234621000,3.7185,4632.7,4632.6,0.001]
[1755234624671,3.283,4632.7,4632.6,0.001]
[1755234625404,3.283,4632.7,4632.6,2.61811503]
[1755234626308,0.002,4632.7,4632.6,2.61811503]
[1755234626610,0.002,4632.7,4632.6,3.55439683]
[1755234626914,0.002,4632.7,4632.6,4.12036976]
[1755234627575,0.002,4633.0,4632.9,2.70847525]
[1755234627773,0.002,4633.0,4632.9,6.00444469]
[1755234627981,0.002,4633.0,4632.9,7.01347525]
[1755234628183,0.002,4633.0,4632.9,7.9785578]
[1755234634743,0.002,4633.0,4632.9,7.5200578]
[1755234635996,0.002,4633.0,4632.9,3.7815578]
[1755234636196,0.002,4633.0,4632.9,7.0605578]
[1755234636397,0.002,4633.0,4632.9,7.5190578]
[1755234637443,0.002,4633.0,4632.9,3.7815578]
[1755234637738,0.4447,4633.0,4632.9,3.7815578]
[1755234637937,0.4447,4633.0,4632.9,2.15847525]
[1755234638231,0.4447,4633.0,4632.6,2.15960683]
[1755234638232,0.4447,4633.0,4632.8,2.15851471]
[1755234638403,0.002,4633.0,4632.9,2.15847525]
[1755234639014,0.4447,4633.0,4632.9,2.15847525]
[1755234639316,0.002,4633.0,4632.9,2.15847525]
[1755234639513,0.002,4633.0,4632.9,2.590279]
[1755234639715,0.002,4633.0,4632.9,3.048779]
[1755234639916,0.002,4633.0,4632.9,3.598779]
[1755234640332,0.002,4633.0,4632.9,6.89374844]
[1755234640519,0.002,4633.0,4632.9,6.877779]
[1755234641027,0.002,4633.0,4632.9,7.336279]
[1755234645026,0.002,4633.0,4632.9,6.877779]
[1755234645226,0.002,4633.0,4632.9,6.419279]
[1755234645625,0.4447,4633.0,4632.9,3.140279]
[1755234645822,0.4447,4633.0,4632.8,6.40852084]
[1755234646127,0.4972,4632.9,4632.8,4.25]
[1755234646312,0.9399,4632.9,4632.8,4.25]
[1755234646715,0.9399,4632.9,4632.6,2.15959532]
[1755234646961,0.9399,4632.8,4632.6,2.15959532]
[1755234647130,0.9399,4632.7,4632.6,2.15959532]
[1755234647644,0.9399,4632.7,4632.6,0.001]
[1755234648021,3.54619175,4632.7,4632.6,0.001]
[1755234648418,1.36064122,4632.7,4632.6,0.001]
[1755234648831,4.63964122,4632.7,4632.6,0.001]
[1755234652322,10.12087822,4632.7,4632.6,0.001]
[1755234652536,6.30520965,4632.7,4632.6,0.001]
[1755234652830,6.88021265,4632.7,4632.6,0.001]
[1755234653018,13.30134965,4632.7,4632.6,0.001]
[1755234654174,13.76513126,4632.7,4632.6,0.001]
[1755234660259,13.76513126,4632.7,4632.1,0.001]
[1755234660260,2.15868364,4632.5,4632.1,0.001]
[1755234660445,15.72220903,4632.3,4632.1,0.001]
[1755234660650,22.71512764,4632.3,4632.1,0.001]
[1755234660846,22.71512764,4632.3,4631.6,0.001]
[1755234660847,23.65052764,4632.3,4631.6,0.001]
[1755234661068,2.26694125,4631.9,4631.6,0.001]
[1755234661270,2.15903447,4631.7,4631.6,0.001]
[1755234661475,22.1706136,4631.7,4631.6,0.001]
[1755234661701,22.59052567,4631.7,4631.6,0.001]
[1755234661877,23.07902567,4631.7,4631.6,0.001]
[1755234662074,12.30707147,4631.7,4631.6,0.001]
[1755234662406,13.69587854,4631.7,4631.6,0.001]
[1755234662628,14.34489254,4631.7,4631.6,0.001]
[1755234663158,14.80728293,4631.7,4631.6,0.001]
[1755234665571,8.38614593,4631.7,4631.6,0.001]
[1755234665772,14.80728293,4631.7,4631.6,0.001]
[1755234667678,13.85639254,4631.7,4631.6,0.001]
[1755234667879,14.31839882,4631.7,4631.6,0.001]
[1755234668103,14.80689882,4631.7,4631.6,0.001]
[1755234668467,14.34489254,4631.7,4631.6,0.001]
[1755234669782,14.31837745,4631.7,4631.6,0.001]
[1755234670182,13.85639254,4631.7,4631.6,0.001]
[1755234670584,14.31839437,4631.7,4631.6,0.001]
[1755234671491,14.80689437,4631.7,4631.6,0.001]
[1755234671689,8.38575737,4631.7,4631.6,0.001]
[1755234671890,14.80689437,4631.7,4631.6,0.001]
[1755234673884,14.31839437,4631.7,4631.6,0.001]
[1755234674285,16.2104215,4631.7,4631.6,0.001]
[1755234676210,15.7635215,4631.7,4631.6,0.001]
[1755234676412,16.34412633,4631.7,4631.6,0.001]
[1755234677281,15.7635215,4631.7,4631.6,0.001]
[1755234677688,16.2104215,4631.7,4631.6,0.001]
[1755234679320,16.98579865,4631.7,4631.6,0.001]
[1755234679691,17.47429865,4631.7,4631.6,0.001]
[1755234680400,16.6989215,4631.7,4631.6,0.001]
[1755234680599,16.2104215,4631.7,4631.6,0.001]
[1755234681114,16.53674188,4631.7,4631.6,0.001]
[1755234681324,13.25674188,4631.7,4631.6,0.001]
[1755234681508,15.7635215,4631.7,4631.6,0.001]
[1755234682493,16.2369215,4631.7,4631.6,0.001]
[1755234682816,17.40034498,4631.7,4631.6,0.001]
[1755234683402,16.7108215,4631.7,4631.6,0.001]
[1755234684134,2.15917433,4631.4,4631.3,0.001]
[1755234684341,2.15950072,4630.7,4630.6,0.001]
[1755234684635,26.0210875,4630.7,4630.6,0.001]
[1755234684835,26.48769375,4630.7,4630.6,0.001]
[1755234685135,27.86140082,4630.7,4630.6,0.001]
[1755234685534,29.02286012,4630.7,4630.6,0.001]
[1755234685731,27.86140082,4630.7,4630.6,0.001]
[1755234685928,13.82554662,4630.7,4630.6,0.001]
[1755234686322,13.93861103,4630.7,4630.6,0.001]
[1755234686517,15.72340569,4630.7,4630.6,0.001]
[1755234686711,16.88486499,4630.7,4630.6,0.001]
[1755234687366,30.92171919,4630.7,4630.6,0.001]
[1755234687559,29.76025989,4630.7,4630.6,0.001]
[1755234688009,30.23415989,4630.7,4630.6,0.001]
[1755234688843,29.76025989,4630.7,4630.6,0.001]
[1755234689759,15.72340569,4630.7,4630.6,0.001]
[1755234693430,12.44240569,4630.7,4630.6,0.001]
[1755234693628,15.72340569,4630.7,4630.6,0.001]
[1755234695434,16.88444198,4630.7,4630.6,0.001]
[1755234697462,15.72340569,4630.7,4630.6,0.001]
[1755234697969,11.54209862,4630.7,4630.6,0.4946]
[1755234698276,14.21899436,4630.7,4630.6,0.9409]
[1755234698445,14.79949182,4630.7,4630.6,0.4946]
[1755234700383,14.79949182,4630.7,4630.6,0.001]
[1755234700549,11.51849182,4630.7,4630.6,0.4946]
[1755234700749,14.21899436,4630.7,4630.6,0.4946]
[1755234701152,12.05949364,4630.7,4630.6,0.9409]
[1755234701472,14.21899436,4630.7,4630.6,0.9409]
[1755234702074,12.05949364,4630.7,4630.6,0.9409]
[1755234702395,14.21899436,4630.7,4630.6,0.9409]
[1755234702774,12.05949364,4630.7,4630.6,0.4946]
[1755234703171,14.21899436,4630.7,4630.6,0.4946]
[1755234703378,12.05949364,4630.7,4630.6,0.4946]
[1755234703576,14.21899436,4630.7,4630.6,0.001]
[1755234703783,15.53155546,4630.7,4630.6,0.001]
[1755234704090,16.19887234,4630.7,4630.6,0.001]
[1755234704247,9.5190717,4630.7,4630.6,0.001]
[1755234704454,15.9402087,4630.7,4630.6,0.001]
[1755234704776,16.4348087,4630.7,4630.6,0.001]
[1755234705087,15.66089436,4630.7,4630.6,0.001]
[1755234705271,2.15973392,4630.2,4630.1,0.001]
[1755234705478,26.7975401,4630.2,4630.1,0.001]
[1755234705781,29.35376066,4630.2,4630.1,0.001]
[1755234706496,28.58010433,4630.2,4630.1,0.001]
[1755234707085,28.74039539,4630.2,4630.1,0.001]
[1755234708072,29.51405172,4630.2,4630.1,0.001]
[1755234708287,29.04015172,4630.2,4630.1,0.001]
[1755234710089,29.51405172,4630.2,4630.1,0.001]
[1755234711508,28.74039539,4630.2,4630.1,0.001]
[1755234711913,28.82696739,4630.2,4630.1,0.001]
[1755234712263,28.35306739,4630.2,4630.1,0.001]
[1755234712514,28.84536739,4630.2,4630.1,0.001]
[1755234712801,2.15978056,4630.1,4629.6,0.001]
[1755234713000,15.83142136,4629.7,4629.6,0.001]
[1755234713304,25.99812034,4629.7,4629.6,0.001]
[1755234713466,26.43992034,4629.7,4629.6,0.001]
[1755234714676,26.90122034,4629.7,4629.6,0.001]
[1755234715289,2.1601538,4629.3,4629.2,0.001]
[1755234715604,11.99729272,4629.3,4629.2,0.001]
[1755234715806,12.32685278,4629.3,4629.2,0.001]
[1755234715979,13.669387,4629.3,4629.2,0.001]
[1755234716509,7.46681578,4629.3,4629.2,0.001]
[1755234716807,13.669387,4629.3,4629.2,0.001]
[1755234717124,13.33795278,4629.3,4629.2,0.001]
[1755234717469,14.31237589,4629.3,4629.2,0.001]
[1755234718215,13.53930662,4629.3,4629.2,0.001]
[1755234718412,14.86237619,4629.3,4629.2,0.001]
[1755234718729,14.58160662,4629.3,4629.2,0.001]
[1755234719229,2.16066721,4628.2,4628.1,0.4613]
[1755234719432,11.97280421,4628.2,4628.1,0.4613]
[1755234719640,12.43736619,4628.2,4628.1,0.4613]
[1755234719945,2.16077528,4628.0,4627.8,0.001]
[1755234720128,9.704137,4627.9,4627.8,0.4381]
[1755234720335,9.812137,4627.9,4627.8,0.4381]
[1755234720502,11.97294427,4627.9,4627.8,0.4381]
[1755234721125,11.97294427,4627.9,4627.8,0.8994]
[1755234721529,9.812137,4627.9,4627.8,0.8994]
[1755234721725,3.39,4627.9,4627.8,1.00934]
[1755234722238,3.39,4627.9,4627.8,0.8994]
[1755234727112,0.108,4627.9,4627.8,0.4623]
[1755234727413,3.282,4627.9,4627.8,3.06025396]
[1755234727622,3.282,4627.9,4627.8,0.8994]
[1755234729014,3.282,4627.9,4627.8,3.06025396]
[1755234729627,3.282,4627.9,4627.8,0.8994]
[1755234730214,3.282,4627.9,4627.8,0.4623]
[1755234734564,3.282,4627.9,4627.8,0.001]
[1755234734884,3.282,4627.9,4627.8,0.4623]
[1755234735078,3.282,4627.9,4627.8,0.001]
[1755234735253,9.703137,4627.9,4627.8,0.001]
[1755234735638,11.86394427,4627.9,4627.8,0.001]
[1755234735971,12.30574427,4627.9,4627.8,0.001]
[1755234736372,11.86394427,4627.9,4627.8,0.001]
[1755234736670,2.16090066,4627.7,4627.6,0.2]
[1755234736876,8.58203766,4627.7,4627.6,0.2]
[1755234737083,9.59632407,4627.7,4627.6,0.2]
[1755234737241,12.43652407,4627.7,4627.6,0.2]
[1755234737937,9.15452407,4627.7,4627.6,0.2]
[1755234738138,12.43652407,4627.7,4627.6,0.2]
[1755234738563,12.60080193,4627.7,4627.6,0.2]
[1755234738868,13.04260193,4627.7,4627.6,0.2]
[1755234739439,12.60080193,4627.7,4627.6,0.2]
[1755234739841,13.04260193,4627.7,4627.6,0.2]
[1755234741450,7.15790127,4627.7,4627.6,0.2]
[1755234741655,12.60280193,4627.7,4627.6,0.2]
[1755234742479,10.44090127,4627.7,4627.6,0.2]
[1755234744308,12.60180193,4627.7,4627.6,0.2]
[1755234744498,10.44090127,4627.7,4627.6,0.2]
[1755234745109,10.87470127,4627.7,4627.6,0.2]
[1755234745419,12.60180193,4627.7,4627.6,0.2]
[1755234745727,13.03560193,4627.7,4627.6,0.2]
[1755234745887,12.49380193,4627.7,4627.6,0.2]
[1755234746077,12.60180193,4627.7,4627.6,0.2]
[1755234746803,13.03560193,4627.7,4627.6,0.2]
[1755234754505,9.75260193,4627.7,4627.6,0.2]
[1755234754710,13.03560193,4627.7,4627.6,0.2]
[1755234755252,13.03560193,4627.7,4627.6,0.201]
[1755234756212,13.50880193,4627.7,4627.6,0.201]
[1755234756434,13.49580193,4627.7,4627.6,0.201]
[1755234756831,15.49344085,4627.7,4627.6,0.201]
[1755234757170,2.16104075,4627.4,4627.3,0.001]
[1755234757337,25.45664495,4627.4,4627.3,0.001]
[1755234757534,28.75947097,4627.4,4627.3,0.001]
[1755234757735,28.75947097,4627.4,4625.5,0.4602]
[1755234757736,2.16169099,4626.1,4625.5,0.4602]
[1755234757968,0.108,4625.6,4625.5,0.4602]
[1755234758134,3.393,4625.6,4625.5,0.4602]
[1755234759874,3.393,4625.6,4624.8,2.62242702]
[1755234760034,0.108,4625.2,4624.9,1.1732427]
[1755234760234,0.108,4625.2,4625.0,0.9002]
[1755234760434,3.285,4625.1,4625.0,3.06236216]
[1755234760876,0.108,4625.2,4625.1,2.16211541]
[1755234761036,0.108,4625.5,4625.2,2.16202194]
[1755234761382,3.286,4625.4,4625.3,3.36844411]
[1755234761670,0.108,4625.7,4625.6,2.1618817]
[1755234761873,3.394,4625.7,4625.6,3.0620817]
[1755234762036,3.394,4625.7,4625.6,0.9002]
[1755234762436,3.394,4625.7,4625.6,2.6220817]
[1755234762637,3.394,4625.7,4625.6,3.35491209]
[1755234762839,0.463908,4626.6,4625.6,1.19303039]
[1755234763052,3.285,4626.5,4625.7,0.9002]
[1755234763381,3.285,4626.4,4626.3,2.16155459]
[1755234764182,3.285,4626.4,4626.3,3.06175459]
[1755234764395,3.285,4626.4,4626.3,0.4602]
[1755234764682,3.285,4626.4,4626.3,0.9002]
[1755234764900,3.285,4626.4,4626.3,1.2063799]
[1755234765062,3.285,4626.4,4626.3,0.7663799]
[1755234765714,3.285,4626.4,4626.3,0.3061799]
[1755234765916,3.285,4626.4,4626.3,0.7663799]
[1755234766696,3.285,4626.4,4626.1,2.16164796]
[1755234766896,3.285,4626.4,4626.3,0.4602]
[1755234767311,3.393,4626.4,4626.3,0.4602]
[1755234768365,3.394,4626.4,4626.3,2.62175459]
[1755234768567,3.394,4626.4,4626.3,0.9002]
[1755234769222,3.394,4626.4,4626.3,0.4602]
[1755234769669,3.394,4626.4,4626.3,0.9002]
[1755234769873,3.394,4626.4,4626.3,3.06175459]
[1755234770308,3.394,4626.4,4626.3,0.9002]
[1755234771012,3.394,4626.4,4626.3,0.4602]
[1755234774505,3.394,4626.4,4626.3,0.4612]
[1755234776545,3.394,4626.4,4626.3,0.001]
[1755234778941,3.8342,4626.4,4626.3,0.001]
[1755234779547,3.394,4626.4,4626.3,0.001]
[1755234779843,10.59743877,4626.4,4626.3,0.001]
[1755234780010,12.75894663,4626.4,4626.3,0.001]
[1755234780413,7.33573776,4626.4,4626.3,0.001]
[1755234780610,6.529137,4626.4,4626.3,0.001]
[1755234780809,9.813137,4626.4,4626.3,0.001]
[1755234783752,3.392,4626.4,4626.3,0.4881]
[1755234784460,3.392,4626.4,4626.3,0.001]
[1755234785418,3.392,4626.4,4626.3,0.4881]
[1755234786255,3.392,4626.4,4626.3,0.001]
[1755234788341,3.8322,4626.4,4626.3,0.001]
[1755234789852,3.392,4626.4,4626.3,0.001]
[1755234790855,0.108,4626.4,4626.3,0.001]
[1755234791023,3.391,4626.4,4626.3,0.4881]
[1755234791425,3.391,4626.4,4626.3,2.64965459]
[1755234791750,3.391,4626.4,4626.3,0.4881]
[1755234792162,3.391,4626.4,4626.3,0.001]
[1755234793757,3.8312,4626.4,4626.3,0.001]
[1755234794352,3.391,4626.4,4626.3,0.001]
[1755234795472,4.21432,4626.4,4626.3,0.001]
[1755234797863,7.836457,4626.4,4626.3,0.001]
[1755234798059,11.09984223,4626.4,4626.3,0.001]
[1755234798260,14.8952929,4626.4,4626.3,1e-08]
[1755234798499,2.824,4626.3,4623.5,0.4871]
[1755234798660,2.824,4626.3,4622.1,0.4871]
[1755234798661,2.16244295,4624.4,4622.1,0.4871]
[1755234798867,0.58051964,4624.1,4622.2,0.4871]
[1755234799171,2.74324631,4623.8,4622.2,0.4871]
[1755234799386,10.634337,4623.7,4622.6,2.16328424]
[1755234799597,10.634337,4623.7,4622.2,0.4871]
[1755234799598,6.421137,4623.6,4622.1,2.16351613]
[1755234799806,2.16303234,4623.2,4622.2,2.16346166]